bitfinex-derivatives/quotes_ETHF0:USTF0_20240924
["timestamp","ask_amount","ask_price","bid_price","bid_amount"]
[1727215283771,0.37628,2657.4,2657.3,2.65]
[1727215283968,2.16645,2657.6,2656.9,7.13115]
[1727215284173,2.16645,2657.6,2656.9,7.13015]
[1727215284375,0.3763,2657.3,2657.0,0.37634]
[1727215284877,0.37632,2657.2,2656.9,6.23414]
[1727215285080,0.37632,2657.2,2656.9,7.13014]
[1727215285282,0.37632,2657.2,2656.9,5.8578]
[1727215285471,0.37632,2657.2,2656.9,6.23415]
[1727215285673,3.2078,2657.5,2656.9,2.65]
[1727215285870,1.2258,2657.6,2657.2,2.65]
[1727215286075,1.2258,2657.6,2656.9,5.8578]
[1727215286076,0.94072,2657.4,2656.9,5.8578]
[1727215286280,1.2258,2657.6,2656.9,5.8578]
[1727215286479,0.37634,2657.0,2656.9,5.8578]
[1727215286869,0.37634,2657.0,2656.9,2.65]
[1727215287283,4.14034,2657.0,2656.9,2.65]
[1727215288078,1.3189,2657.4,2656.9,2.65]
[1727215288381,1.3189,2657.4,2656.5,4.5105]
[1727215288382,0.3763,2657.3,2657.2,2.65]
[1727215290674,0.37635,2657.0,2656.9,2.65]
[1727215290879,0.3763,2657.3,2656.9,2.65]
[1727215291074,1.3189,2657.4,2656.9,3.02635]
[1727215291276,0.3763,2657.3,2657.2,2.65]
[1727215292882,0.94081,2657.2,2656.9,2.65]
[1727215293184,0.37634,2657.0,2656.9,2.65]
[1727215294481,1.3172,2657.0,2656.9,2.65]
[1727215297079,0.37639,2656.7,2656.6,2.65]
[1727215297581,0.94086,2657.0,2656.6,3.0264]
[1727215297780,0.94086,2657.0,2656.6,2.65]
[1727215297991,0.37638,2656.7,2656.6,2.65]
[1727215298592,0.37638,2656.7,2656.6,3.0264]
[1727215299287,0.37638,2656.8,2656.6,2.65]
[1727215299494,0.94086,2657.0,2656.6,3.02638]
[1727215299495,0.37638,2656.7,2656.6,3.02638]
[1727215299692,0.37638,2656.7,2656.6,2.65]
[1727215302493,0.37638,2656.8,2656.6,2.65]
[1727215302790,0.37636,2656.9,2656.7,0.37638]
[1727215302997,2.24584,2657.1,2656.6,2.65]
[1727215302998,0.37637,2656.8,2656.6,2.65]
[1727215304483,0.37638,2656.7,2656.6,2.65]
[1727215304693,0.37638,2656.8,2656.6,2.65]
[1727215304890,0.37638,2656.7,2656.6,2.65]
[1727215305104,0.37637,2656.8,2656.6,2.65]
[1727215305387,0.37638,2656.7,2656.6,2.65]
[1727215305594,0.37638,2656.8,2656.6,2.65]
[1727215306790,0.37638,2656.7,2656.6,2.65]
[1727215307591,0.37638,2656.8,2656.6,3.0264]
[1727215307797,0.37638,2656.8,2656.6,2.65]
[1727215308287,0.94086,2657.0,2656.6,2.65]
[1727215308486,0.37638,2656.7,2656.6,2.65]
[1727215308890,0.3764,2656.6,2656.5,1.3027]
[1727215309090,0.94091,2656.9,2656.4,1.3553]
[1727215309091,0.37641,2656.5,2656.4,1.3553]
[1727215309294,0.37641,2656.5,2656.4,4.0053]
[1727215309600,0.37641,2656.6,2656.4,4.0053]
[1727215309895,1.31,2656.8,2656.4,4.38172]
[1727215309896,0.37639,2656.7,2656.4,4.38172]
[1727215310087,0.3764,2656.6,2656.4,1.3553]
[1727215310283,1.31,2656.8,2656.4,1.3553]
[1727215310284,5.83512,2656.8,2656.7,2.65]
[1727215310596,4.89417,2656.8,2656.7,2.65]
[1727215310899,3.58417,2656.8,2656.7,2.65]
[1727215311698,4.5251,2656.8,2656.7,2.65]
[1727215311907,3.58417,2656.8,2656.7,2.65]
[1727215312491,3.2078,2656.8,2656.7,2.65]
[1727215312694,3.58417,2656.8,2656.7,2.65]
[1727215312993,3.2078,2656.8,2656.7,2.65]
[1727215313589,3.58417,2656.8,2656.7,2.65]
[1727215313785,3.2078,2656.8,2656.7,2.65]
[1727215314192,3.2078,2656.8,2656.7,3.9688]
[1727215314393,3.58417,2656.8,2656.7,3.9688]
[1727215314788,0.37637,2656.8,2656.7,3.9688]
[1727215315292,1.85096636,2656.8,2656.7,3.9688]
[1727215315603,1.85096636,2656.8,2656.5,0.3764]
[1727215315604,2.03922371,2656.8,2656.5,0.3764]
[1727215315794,1.85099175,2656.7,2656.5,1.27]
[1727215316095,1.66288982,2656.6,2656.5,1.64641]
[1727215316301,1.47460175,2656.6,2656.5,4.85421]
[1727215316504,1.6628852,2656.6,2656.5,1.64641]
[1727215316701,3.4009372,2656.9,2656.5,1.27]
[1727215316702,1.47460175,2656.8,2656.5,1.27]
[1727215316892,0.37639,2656.7,2656.5,1.27]
[1727215317088,1.66289341,2656.6,2656.5,1.27]
[1727215317296,1.66289341,2656.6,2656.5,1.64641]
[1727215317504,1.66289341,2656.6,2656.5,1.27]
[1727215318698,1.66736994,2656.6,2656.5,1.27]
[1727215319094,1.66733728,2656.6,2656.5,1.64641]
[1727215319295,1.66733728,2656.6,2656.5,1.27]
[1727215319595,1.47904562,2656.6,2656.5,1.64641]
[1727215319998,1.96802176,2656.8,2656.6,0.3764]
[1727215320191,1.96802176,2656.8,2656.7,0.37638]
[1727215320192,2.1563002,2656.8,2656.7,0.37638]
[1727215320408,1.96802176,2657.1,2656.9,0.37635]
[1727215320602,1.96802176,2657.1,2656.9,5.8578]
[1727215320804,0.18826079,2657.1,2657.0,1.3181]
[1727215321007,0.18825527,2657.1,2657.0,1.3181]
[1727215321300,0.18825527,2657.1,2657.0,1.69444]
[1727215321507,2.4600272,2657.3,2657.0,15.54190849]
[1727215321508,1.96802176,2657.3,2657.0,15.54190849]
[1727215321701,7.39243264,2657.8,2657.2,3.58411]
[1727215321702,2.4600272,2657.6,2657.2,3.58411]
[1727215321901,2.4600272,2657.6,2657.5,5.8578]
[1727215322106,2.4600272,2657.8,2657.5,5.8578]
[1727215322304,4.20254483,2657.8,2657.5,2.65]
[1727215322823,4.57877483,2657.8,2657.5,2.65]
[1727215323008,0.37624,2657.7,2657.5,2.65]
[1727215323301,2.4600272,2657.8,2657.5,2.65]
[1727215323496,0.37624,2657.7,2657.5,2.65]
[1727215323701,0.37626,2657.6,2657.5,2.65]
[1727215324096,6.52055,2657.9,2657.5,2.65]
[1727215324097,2.4600272,2657.9,2657.5,2.65]
[1727215324299,3.5740272,2657.7,2657.5,2.65]
[1727215324501,1.1633,2657.6,2657.5,2.65]
[1727215324698,1.53956,2657.6,2657.5,2.65]
[1727215326107,1.1633,2657.6,2657.5,2.65]
[1727215326508,1.53956,2657.6,2657.5,2.65]
[1727215326809,1.1633,2657.6,2657.5,2.65]
[1727215330008,1.1633,2657.6,2657.5,15.621]
[1727215330009,0.98486008,2657.6,2657.5,15.621]
[1727215330203,0.98486008,2657.7,2657.6,0.37626]
[1727215330398,0.98486008,2657.8,2657.6,5.21106]
[1727215330606,0.98454659,2657.8,2657.7,6.4124]
[1727215331014,0.37621,2657.9,2657.7,6.4124]
[1727215331209,3.6064272,2658.1,2657.7,2.65]
[1727215331505,0.37621,2658.0,2657.7,2.65]
[1727215331808,0.37622,2657.9,2657.7,2.65]
[1727215332015,2.4600272,2658.0,2657.7,2.65]
[1727215332206,3.6064272,2658.1,2657.7,2.65]
[1727215332401,3.6064272,2658.1,2658.0,2.65]
[1727215332707,5.72271354,2658.1,2658.0,2.65]
[1727215333208,5.72271354,2658.1,2657.6,1.1047]
[1727215333209,9.10893354,2658.1,2657.6,3.7547]
[1727215333405,5.66800504,2657.9,2657.3,2.65]
[1727215333611,0.98416939,2657.4,2657.3,2.65]
[1727215333801,3.40078504,2657.8,2657.3,2.65]
[1727215333999,0.37628,2657.5,2657.3,2.65]
[1727215334198,1.1462,2657.4,2657.3,2.65]
[1727215336007,1.52248,2657.4,2657.3,2.65]
[1727215336600,1.1462,2657.4,2657.3,2.65]
[1727215336811,1.52248,2657.4,2657.3,2.65]
[1727215337714,5.28568,2657.4,2657.3,2.65]
[1727215338605,1.52248,2657.4,2657.3,2.65]
[1727215339815,1.1462,2657.4,2657.3,2.65]
[1727215340035,0.98408901,2657.4,2657.3,6.78949]
[1727215340516,0.98408901,2657.4,2657.3,7.97979]
[1727215340705,0.98408901,2657.5,2657.4,0.37628]
[1727215340909,0.98408901,2657.5,2657.4,3.02628]
[1727215341412,1.36035901,2657.5,2657.4,2.65]
[1727215341615,1.36028849,2657.5,2657.4,2.65]
[1727215342706,0.98401849,2657.5,2657.4,2.65]
[1727215343114,1.36027849,2657.6,2657.4,2.65]
[1727215343310,0.98401849,2657.6,2657.4,2.65]
[1727215343509,1.36027849,2657.6,2657.4,2.65]
[1727215344310,0.98401849,2657.7,2657.6,0.37626]
[1727215344519,2.46020504,2658.1,2657.5,10.24464059]
[1727215344520,0.98401849,2657.9,2657.5,10.24464059]
[1727215344715,3.26021849,2658.1,2657.9,0.37621]
[1727215344917,2.12111849,2658.1,2658.0,0.3762]
[1727215345119,1.1371,2658.1,2658.0,0.3762]
[1727215345526,0.98401849,2658.2,2658.0,0.37619]
[1727215345712,0.98401849,2658.2,2657.8,5.8578]
[1727215345713,0.98401849,2658.3,2658.1,3.02618]
[1727215345912,2.12311849,2658.4,2658.1,5.8578]
[1727215346120,2.12311849,2658.4,2658.2,1.0798]
[1727215346319,1.1371,2658.5,2658.2,1.0798]
[1727215346320,0.98401849,2658.5,2658.2,1.0798]
[1727215346516,1.36013849,2658.6,2658.4,2.65]
[1727215346719,1.36014849,2658.5,2658.4,2.65]
[1727215347020,0.98401849,2658.5,2658.4,2.65]
[1727215347920,0.3762,2658.1,2657.8,3.2078]
[1727215348123,0.3762,2658.1,2657.8,5.8578]
[1727215348124,2.261,2658.0,2657.8,5.8578]
[1727215348431,2.6372,2658.0,2657.8,5.8578]
[1727215348823,2.261,2658.0,2657.8,5.8578]
[1727215349222,2.6372,2658.0,2657.8,5.8578]
[1727215349830,2.261,2658.0,2657.8,5.8578]
[1727215350721,2.6372,2658.0,2657.8,5.8578]
[1727215350923,2.261,2658.0,2657.8,5.8578]
[1727215351228,0.98266836,2658.2,2657.9,0.37621]
[1727215351431,0.37615,2658.4,2658.1,2.65]
[1727215351432,0.98266836,2658.3,2658.1,2.65]
[1727215351628,0.98266836,2658.3,2658.1,3.02618]
[1727215351826,0.98266836,2658.4,2658.2,1.1633]
[1727215352033,0.98266836,2658.4,2658.3,2.65]
[1727215352329,2.2995,2658.5,2658.3,3.02616]
[1727215352330,2.14776836,2658.5,2658.3,3.02616]
[1727215352530,2.14776836,2658.5,2658.3,3.02615]
[1727215352531,1.1651,2658.5,2658.3,3.02615]
[1727215353129,1.1651,2658.5,2658.3,2.65]
[1727215353333,1.1651,2658.5,2658.3,3.02616]
[1727215353525,0.98266836,2658.6,2658.3,3.02616]
[1727215353922,2.47847836,2658.7,2658.3,2.65]
[1727215354129,0.98266836,2658.6,2658.3,2.65]
[1727215354432,0.37612,2658.6,2658.3,2.65]
[1727215354632,2.10236836,2658.7,2658.2,2.252]
[1727215354832,0.37615,2658.4,2658.2,1.1633]
[1727215356033,6.9694,2658.3,2657.4,0.568]
[1727215356335,4.19046836,2658.1,2657.6,2.65]
[1727215356640,2.14846836,2658.3,2657.9,2.65]
[1727215356937,1.96460056,2658.6,2658.1,3.02617]
[1727215356938,0.98266836,2658.6,2658.1,3.02617]
[1727215357231,0.37616,2658.3,2658.1,2.65]
[1727215357436,0.37615,2658.4,2658.1,2.65]
[1727215357630,0.98266836,2658.5,2658.1,2.65]
[1727215357825,3.24656836,2658.8,2658.4,2.65]
[1727215358050,0.98266836,2659.3,2658.7,2.65]
[1727215358235,0.98266836,2659.3,2658.9,2.65]
[1727215358423,0.94004,2659.4,2658.9,2.65]
[1727215358424,0.37607,2659.0,2658.9,2.65]
[1727215358924,4.13687,2659.0,2658.9,2.65]
[1727215359327,2.14596836,2659.2,2658.9,2.65]
[1727215359528,1.1633,2659.2,2659.1,2.65]
[1727215359925,4.19046836,2659.4,2659.1,3.02604]
[1727215360122,0.37602,2659.3,2659.1,2.65]
[1727215360329,0.98266836,2659.3,2659.1,2.65]
[1727215360725,4.19046836,2659.4,2659.1,2.65]
[1727215361132,4.19046836,2659.4,2659.1,4.13194]
[1727215361337,4.19046836,2659.4,2659.1,3.7559]
[1727215361533,4.19046836,2659.4,2659.1,4.13194]
[1727215361729,2.09746836,2659.5,2659.1,4.13194]
[1727215361939,0.98266836,2659.3,2659.1,4.13194]
[1727215362442,0.98266836,2659.3,2659.2,3.7608]
[1727215362631,0.98266836,2659.5,2659.2,1.0901]
[1727215362938,5.4468,2659.7,2659.4,2.65]
[1727215362939,6.42946836,2659.7,2659.4,2.65]
[1727215363437,10.18946836,2659.7,2659.2,1.0901]
[1727215363632,0.98266836,2659.6,2659.1,1.1059]
[1727215363831,6.42946836,2659.7,2659.5,2.65]
[1727215364042,10.18946836,2659.7,2659.5,2.65]
[1727215364430,6.80542836,2659.7,2659.2,2.65]
[1727215364633,3.76,2659.6,2659.0,2.65]
[1727215364828,3.76,2659.6,2658.7,3.2078]
[1727215364829,0.37604,2659.2,2658.8,2.65]
[1727215365037,3.3627,2659.1,2659.0,2.65]
[1727215365237,0.98266836,2659.4,2659.0,2.65]
[1727215365441,9.84673836,2659.7,2659.3,2.65]
[1727215365638,9.84672836,2659.7,2659.3,2.65]
[1727215365833,9.47076836,2659.7,2659.3,2.65]
[1727215366034,9.47076836,2659.7,2659.6,2.65]
[1727215366333,4.3791,2659.7,2659.6,2.65]
[1727215367030,3.2078,2659.7,2659.6,3.02597]
[1727215367230,3.26796836,2660.1,2659.7,0.37595]
[1727215367432,2.2853,2660.1,2659.8,3.02594]
[1727215367632,2.2853,2660.1,2659.8,2.65]
[1727215367838,2.2853,2660.1,2659.9,0.37592]
[1727215368041,2.2853,2660.1,2659.8,6.23374]
[1727215368336,2.2853,2660.1,2659.9,0.37593]
[1727215368541,2.2853,2660.1,2659.8,5.8578]
[1727215369039,2.2853,2660.1,2659.8,6.23374]
[1727215369242,2.2853,2660.1,2659.8,5.8578]
[1727215369539,0.088,2660.8,2660.5,0.37584]
[1727215369745,1.1859,2660.8,2660.7,2.65]
[1727215370134,1.1859,2660.8,2660.5,2.65]
[1727215370441,1.1859,2660.8,2659.8,2.65]
[1727215370442,0.37588,2660.3,2660.1,2.65]
[1727215370639,2.2727,2660.2,2660.1,3.0259]
[1727215370946,1.1797,2660.2,2660.1,2.65]
[1727215371335,5.31479,2660.2,2660.1,2.65]
[1727215372242,4.9389,2660.2,2660.1,2.65]
[1727215372449,5.31479,2660.2,2660.1,2.65]
[1727215372950,5.3148,2660.2,2659.8,3.02594]
[1727215373145,0.3759,2660.1,2659.8,2.65]
[1727215373549,1.1154,2660.0,2659.8,2.65]
[1727215373850,1.1797,2660.2,2659.8,2.65]
[1727215374048,1.1797,2660.2,2660.1,2.65]
[1727215374547,1.1797,2660.2,2660.1,3.0259]
[1727215375055,1.1154,2660.4,2660.1,6.4092]
[1727215375352,1.1185,2660.6,2660.2,1.48988]
[1727215375551,0.37585,2660.5,2660.4,2.65]
[1727215376047,1.1185,2660.6,2660.4,2.65]
[1727215376555,0.37585,2660.5,2660.4,2.65]
[1727215376754,0.37587,2660.4,2660.2,3.7287]
[1727215377049,0.37585,2660.5,2660.2,4.10459]
[1727215377245,1.49434,2660.6,2660.2,4.10459]
[1727215377454,1.49434,2660.6,2660.2,3.7287]
[1727215377455,1.1185,2660.6,2660.2,3.7287]
[1727215377749,0.37585,2660.5,2660.2,4.10458]
[1727215377946,1.49434,2660.6,2660.3,0.37587]
[1727215378149,0.37585,2660.5,2660.4,2.65]
[1727215378349,1.1185,2660.6,2660.4,2.65]
[1727215378648,0.37585,2660.5,2660.4,2.65]
[1727215379052,4.13425,2660.5,2660.4,2.65]
[1727215379444,1.49434,2660.6,2660.4,2.65]
[1727215379646,5.25274,2660.6,2660.4,2.65]
[1727215380041,0.37585,2660.5,2660.4,2.65]
[1727215380546,0.37587,2660.3,2660.2,2.65]
[1727215380756,3.7584,2660.5,2659.7,3.2078]
[1727215380757,0.37592,2660.0,2659.7,2.65]
[1727215381045,0.37592,2660.0,2659.7,3.02595]
[1727215381046,1.1541,2659.9,2659.7,3.02595]
[1727215381252,1.1541,2659.9,2659.7,2.65]
[1727215381457,1.53003,2659.9,2659.7,2.65]
[1727215382058,0.37594,2659.8,2659.7,2.65]
[1727215382243,5.07581,2659.8,2659.7,2.65]
[1727215382549,3.76,2659.8,2659.7,2.65]
[1727215382849,1.53003,2659.9,2659.7,2.65]
[1727215383144,1.1541,2659.9,2659.7,2.65]
[1727215383347,0.93962,2660.5,2659.7,2.65]
[1727215383548,0.93962,2660.5,2660.0,2.65]
[1727215383549,0.3759,2660.1,2660.0,2.65]
[1727215384049,3.5837,2660.1,2660.0,2.65]
[1727215384246,5.07486,2660.1,2660.0,2.65]
[1727215384840,4.69896,2660.1,2659.7,2.65]
[1727215385152,0.37594,2659.8,2659.7,2.65]
[1727215385341,1.1206,2660.0,2659.7,2.65]
[1727215385544,0.37592,2660.0,2659.7,3.02595]
[1727215386241,0.37594,2659.9,2659.7,2.65]
[1727215386448,3.29039,2660.3,2659.7,2.65]
[1727215386648,0.93975,2660.2,2659.7,3.02596]
[1727215386846,0.37594,2659.9,2659.7,2.65]
[1727215387049,4.14755,2660.2,2659.7,2.65]
[1727215387050,0.37594,2659.8,2659.7,2.65]
[1727215387546,0.37597,2659.6,2659.5,3.8243]
[1727215387742,2.09995,2659.9,2659.5,3.8243]
[1727215387743,1.1671,2659.7,2659.5,3.8243]
[1727215387942,1.1671,2659.7,2659.6,2.65]
[1727215388352,0.37595,2659.8,2659.6,2.65]
[1727215388754,0.37596,2659.7,2659.6,2.65]
[1727215390955,0.37596,2659.7,2659.4,2.65]
[1727215390956,0.376,2659.5,2659.4,2.65]
[1727215392049,0.376,2659.5,2659.2,1.13]
[1727215392050,0.37601,2659.3,2659.2,3.78]
[1727215392558,0.37598,2659.6,2659.3,0.37601]
[1727215392857,1.31591,2659.6,2659.5,2.65]
[1727215393451,0.376,2659.4,2659.3,2.65]
[1727215394150,1.31601,2659.4,2659.3,2.65]
[1727215395350,0.376,2659.5,2659.3,2.65]
[1727215395758,0.376,2659.5,2659.3,3.02601]
[1727215396154,0.376,2659.5,2659.3,2.65]
[1727215396448,1.1072,2659.7,2659.3,2.65]
[1727215396449,0.376,2659.4,2659.3,2.65]
[1727215396650,1.1072,2659.7,2659.4,0.37599]
[1727215396858,1.48316,2659.7,2659.6,2.65]
[1727215397047,1.48316,2659.7,2659.4,2.65]
[1727215397250,0.37599,2659.5,2659.4,2.65]
[1727215398652,0.93996,2659.6,2659.2,3.746]
[1727215398653,0.37601,2659.3,2659.2,3.746]
[1727215398854,0.93996,2659.6,2659.2,3.746]
[1727215398855,0.37601,2659.4,2659.2,3.746]
[1727215399156,0.37601,2659.3,2659.2,3.746]
[1727215399355,0.37603,2659.2,2659.1,1.1703]
[1727215399561,2.45761,2659.2,2659.1,1.1703]
[1727215399761,2.45761,2659.2,2658.8,1.1664]
[1727215399762,4.9023,2659.2,2658.8,1.1664]
[1727215399952,0.37607,2658.9,2658.8,1.1664]
[1727215400156,1.0773,2659.1,2658.8,4.19249]
[1727215400354,1.0773,2659.1,2658.9,0.37607]
[1727215400657,1.45335,2659.1,2658.8,4.19248]
[1727215401159,1.45335,2659.1,2658.9,0.37607]
[1727215401463,0.37606,2659.0,2658.8,4.19248]
[1727215401655,1.0773,2659.1,2658.8,3.8164]
[1727215401966,0.37607,2658.9,2658.8,3.8164]
[1727215402763,0.37609,2658.8,2658.4,2.65]
[1727215402954,0.37612,2658.6,2658.4,2.65]
[1727215403655,1.079,2658.7,2658.4,2.65]
[1727215403959,0.37613,2658.5,2658.4,2.65]
[1727215404662,2.66242,2658.6,2658.4,2.65]
[1727215404968,0.98266836,2658.8,2658.4,2.65]
[1727215405155,0.98266836,2658.8,2658.6,2.65]
[1727215405156,0.37609,2658.8,2658.6,2.65]
[1727215405457,0.37608,2658.9,2658.6,3.02611]
[1727215405659,0.37609,2658.8,2658.6,2.65]
[1727215405861,0.3761,2658.7,2658.6,2.65]
[1727215406954,0.37613,2658.5,2658.4,2.65]
[1727215408660,0.37613,2658.5,2657.5,4.19668057]
[1727215408661,6.9694,2658.5,2657.5,4.19668057]
[1727215408856,3.2078,2658.2,2657.7,4.8844]
[1727215409055,1.56209,2658.1,2658.0,2.65]
[1727215409768,1.1859,2658.1,2658.0,2.65]
[1727215410460,0.37618,2658.1,2658.0,2.65]
[1727215412265,0.37621,2657.9,2657.8,1.149]
[1727215412468,1.1501,2658.0,2657.8,1.149]
[1727215412668,0.37619,2658.1,2657.9,2.65]
[1727215412879,0.37618,2658.2,2657.9,2.65]
[1727215413067,1.53237,2658.3,2657.9,2.65]
[1727215413267,1.1501,2658.6,2658.2,2.65]
[1727215413465,1.1501,2658.6,2658.5,2.65]
[1727215413466,2.249,2658.6,2658.5,2.65]
[1727215413975,2.249,2658.6,2657.8,1.1391]
[1727215413976,12.0106,2658.6,2657.8,1.1391]
[1727215414167,12.0106,2658.6,2657.4,3.2078]
[1727215414168,0.37622,2657.9,2657.7,1.1629]
[1727215414472,0.37623,2657.8,2657.7,1.1629]
[1727215415470,0.37623,2657.9,2657.7,1.1629]
[1727215415860,2.249,2658.1,2657.7,1.1629]
[1727215416065,0.37622,2657.9,2657.7,1.1629]
[1727215416868,0.37623,2657.8,2657.7,1.1629]
[1727215417369,3.7624,2657.8,2657.3,3.2078]
[1727215417572,3.2078,2657.7,2657.4,6.0392]
[1727215417874,3.1895,2658.1,2657.4,6.0392]
[1727215417875,4.3067,2658.1,2657.6,2.65]
[1727215418077,0.37625,2657.7,2657.4,6.0392]
[1727215418268,0.37624,2657.7,2657.4,6.0392]
[1727215418773,3.2078,2657.8,2657.4,6.0392]
[1727215418973,3.2078,2657.8,2657.4,3.3892]
[1727215419273,0.37627,2657.5,2657.4,1.0876]
[1727215419960,5.2474,2657.8,2657.4,1.0876]
[1727215419961,4.3068,2657.8,2657.4,1.0876]
[1727215420165,0.37624,2657.7,2657.4,1.0876]
[1727215420460,0.37626,2657.6,2657.5,2.2458]
[1727215420865,0.37627,2657.5,2657.4,1.0876]
[1727215421373,3.58407,2657.5,2657.4,1.0876]
[1727215421760,3.58407,2657.5,2657.0,2.65]
[1727215421761,0.37629,2657.4,2657.0,2.65]
[1727215421965,3.2078,2657.5,2657.2,2.65]
[1727215422172,5.2892,2657.8,2657.2,2.65]
[1727215422474,4.3486,2657.8,2657.5,2.65]
[1727215422675,0.37624,2657.7,2657.6,2.2597]
[1727215423571,0.37624,2657.7,2657.0,2.65]
[1727215423572,3.7624,2657.7,2657.0,2.65]
[1727215423779,0.3763,2657.4,2657.1,2.2597]
[1727215423976,3.58408,2657.5,2657.1,2.2597]
[1727215424675,0.37629,2657.4,2657.1,2.2597]
[1727215426070,0.37631,2657.2,2657.1,2.2597]
[1727215426574,2.12937,2657.6,2657.1,6.0229]
[1727215426772,0.37631,2657.3,2657.1,2.2597]
[1727215427576,0.37631,2657.2,2657.1,2.2597]
[1727215427779,3.2078,2657.5,2657.1,2.2597]
[1727215427972,0.37628,2657.5,2657.3,2.65]
[1727215428171,0.37628,2657.5,2657.1,4.9097]
[1727215428571,0.37629,2657.4,2657.1,4.9097]
[1727215428876,0.3763,2657.4,2657.1,4.9097]
[1727215429172,0.37631,2657.2,2657.1,2.2597]
[1727215429679,1.3171,2657.2,2657.1,2.2597]
[1727215429877,1.3171,2657.2,2657.1,1.1231]
[1727215430176,1.3171,2657.2,2656.7,1.0876]
[1727215430177,0.37637,2656.8,2656.7,1.0876]
[1727215430478,0.37634,2657.0,2656.7,3.2833]
[1727215430681,0.37635,2656.9,2656.7,3.2833]
[1727215431181,0.37637,2656.8,2656.7,3.2833]
[1727215431376,4.3529,2657.1,2656.7,3.2833]
[1727215431880,0.37636,2656.9,2656.7,3.2833]
[1727215432477,0.37641,2656.5,2655.8,3.2078]
[1727215432678,2.65,2657.0,2656.5,2.2181]
[1727215432679,0.9409,2656.9,2656.5,2.2181]
[1727215432882,0.3764,2656.6,2656.5,2.2181]
[1727215433092,4.1487,2656.9,2656.5,2.2181]
[1727215433275,0.37639,2656.7,2656.5,2.2181]
[1727215433479,0.37639,2656.7,2656.5,4.8681]
[1727215433677,0.3764,2656.6,2656.5,2.2181]
[1727215434879,2.95389032,2656.9,2656.5,4.8681]
[1727215435078,0.37632,2657.2,2656.8,3.02637]
[1727215435283,0.37629,2657.4,2656.9,1.53074]
[1727215435479,0.37629,2657.4,2657.1,2.65]
[1727215435679,3.2078,2657.5,2657.1,2.65]
[1727215436275,3.58408,2657.5,2657.1,2.65]
[1727215436472,3.58408,2657.5,2657.1,0.37633]
[1727215436684,3.2078,2657.5,2657.1,0.37633]
[1727215436874,3.58407,2657.5,2657.0,2.71663]
[1727215437280,3.58407,2657.5,2657.1,0.37633]
[1727215437476,3.2078,2657.5,2657.1,0.37633]
[1727215437983,3.2078,2657.5,2657.2,2.65]
[1727215438481,0.37626,2657.6,2657.3,1.1327]
[1727215438681,0.37625,2657.7,2657.3,1.1327]
[1727215439079,0.37626,2657.6,2657.3,1.1327]
[1727215439382,2.2675,2657.8,2657.4,2.65]
[1727215439582,2.2675,2657.8,2657.3,1.1327]
[1727215439891,0.37626,2657.6,2657.3,1.1327]
[1727215440077,2.2675,2657.8,2657.3,1.1327]
[1727215440272,0.37626,2657.6,2657.3,1.1327]
[1727215440594,0.37627,2657.6,2657.3,1.1327]
[1727215440783,0.37627,2657.5,2657.3,1.1327]
[1727215441182,0.37628,2657.4,2657.3,1.1327]
[1727215442280,1.1172,2657.5,2657.0,6.1225]
[1727215442483,3.2078,2657.6,2657.3,0.37629]
[1727215442681,0.37626,2657.6,2657.4,1.1322]
[1727215442877,3.58406,2657.6,2657.4,1.1322]
[1727215443280,3.58406,2657.6,2656.2,3.7758]
[1727215443281,6.4132,2657.5,2656.2,3.7758]
[1727215443488,3.2078,2656.9,2656.5,1.184]
[1727215443789,4.14862,2657.1,2656.5,1.56041]
[1727215443985,0.37636,2656.9,2656.6,0.37639]
[1727215444185,1.1933,2657.0,2656.7,2.65]
[1727215444396,1.1933,2657.0,2656.5,1.184]
[1727215444397,1.1095,2657.1,2656.9,2.65]
[1727215444586,1.1095,2657.1,2656.9,3.02635]
[1727215444886,1.1095,2657.1,2656.9,0.37635]
[1727215445277,1.1095,2657.1,2656.8,1.48976]
[1727215445992,1.1095,2657.1,2657.0,0.37634]
[1727215446178,1.1933,2657.3,2656.9,3.8416]
[1727215446493,1.1933,2657.3,2657.0,0.37633]
[1727215446494,2.6791,2657.3,2657.0,0.37633]
[1727215447287,0.37632,2657.2,2656.8,1.48976]
[1727215447792,3.2078,2657.1,2656.8,1.48976]
[1727215448586,0.37631,2657.2,2656.8,1.1134]
[1727215448792,0.37635,2657.0,2656.8,1.1134]
[1727215450183,3.2078,2657.1,2656.8,1.1134]
[1727215450492,1.46865,2656.9,2656.8,1.1134]
[1727215450695,1.0923,2656.9,2656.8,1.1134]
[1727215452388,1.0923,2656.9,2656.8,1.48977]
[1727215452595,1.0923,2656.9,2656.6,3.02639]
[1727215452782,1.093,2656.8,2656.6,3.02639]
[1727215453685,1.093,2656.8,2656.7,0.37638]
[1727215455188,0.98266836,2657.0,2656.7,3.764]
[1727215455395,0.98266836,2657.1,2656.8,3.8369]
[1727215455598,0.98266836,2657.1,2657.0,0.37634]
[1727215455991,1.35897836,2657.2,2656.9,1.47124]
[1727215456293,0.98266836,2657.0,2656.6,3.7449]
[1727215456495,0.98266836,2657.0,2656.9,0.37635]
[1727215457495,0.98266836,2657.1,2657.0,0.37634]